Workbook

Sheet Feuil1
A1: D1 | C1: T1 | E1: D2 | G1: T2 | I1: D3 | K1: T2 | M1: D4 | O1: T4 | Q1: D5 | S1: T5 | U1: D6 | W1: T6 | Y1: D7 | AA1: T7 | AC1: D8 | AE1: D9 | AG1: D10 | AI1: D11 | AK1: D12 | AM1: D13 | AO1: D14 | AQ1: D15 | AS1: D16 | AU1: D17 | AW1: D18 | AY1: D19 | BA1: D20
A3: 2010-02-26 | B3: 9 | C3: 2010-09-12 | D3: 3 | E3: 2010-09-15 | F3: 12 | G3: 2010-09-27 | H3: 17 | I3: 2010-10-14 | J3: 7
A5: 2010-01-19 | B5: 6
A7: 2010-04-02 | B7: 1
A10: 2010-10-04 | B10: 7 | C10: 2010-10-11 | D10: 12 | E10: 2010-10-23 | F10: 7
A14: 2010-01-29 | B14: 31 | C14: 2010-03-01 | D14: 14
A15: 2010-01-02 | B15: 3 | C15: 2010-11-04 | D15: 2
A19: 2010-03-04 | B19: 1 | C19: 2010-03-22 | D19: 2 | E19: 2010-05-12 | F19: 6 | G19: 2010-05-18 | H19: 8 | I19: 2010-05-26 | J19: 13 | K19: 2010-06-08 | L19: 13
A20: 2010-08-05 | B20: 5
A21: 2010-05-17 | B21: 18 | C21: 2010-06-04
A22: 2010-01-05 | B22: 1 | C22: 2010-01-24 | D22: 3
A24: 2010-09-09 | B24: 9
A30: 2010-09-12 | B30: 1 | C30: 2010-09-20 | D30: 14 | E30: 2010-10-04 | F30: 14 | G30: 2010-10-18 | H30: 28 | I30: 2010-11-15 | J30: 47
A33: 2010-06-21 | B33: 7 | C33: 2010-06-28 | D33: 7 | E33: 2010-07-05 | F33: 7
A37: 2010-02-15 | B37: 3
A38: 2010-11-23 | B38: 5
A39: 2010-04-21 | B39: 5 | C39: 2010-04-26 | D39: 5 | E39: 2010-05-04 | F39: 6
A42: 2010-03-11 | B42: 1 | C42: 2010-05-03
A45: 2010-09-13 | B45: 7 | C45: 2010-09-20 | D45: 31
A49: 2010-04-14 | B49: 27 | C49: 2010-10-06 | D49: 30
A53: 2010-07-15 | B53: 9 | C53: 2010-12-27 | D53: 5
A57: 2010-05-21 | B57: 2
A60: 2010-10-06 | B60: 5 | C60: 2010-10-11 | D60: 7 | E60: 2010-12-16 | F60: 16
A63: 2010-09-26 | B63: 1 | C63: 2010-12-08 | D63: 5
A64: 2010-01-20 | B64: 3
A67: 2010-02-26 | B67: 34 | C67: 2010-05-30 | D67: 8 | E67: 2010-06-07 | F67: 9 | G67: 2010-06-16 | H67: 17 | I67: 2010-07-03 | J67: 18 | K67: 2010-07-21 | L67: 42
A68: 2010-04-06 | B68: 4
A79: 2010-04-23 | B79: 24 | C79: 2010-05-17 | D79: 14
A82: 2009-12-19 | B82: 19 | C82: 2010-05-21 | D82: 1
A83: 2010-12-11 | B83: 3 | C83: 2010-12-14 | D83: 4
A84: 2009-12-20 | B84: 20 | C84: 2010-01-21 | D84: 5 | E84: 2010-06-07 | F84: 3 | G84: 2010-06-10 | H84: 1
A85: 2010-06-02 | B85: 8
A91: 2010-11-24 | B91: 2 | C91: 2010-12-23 | D91: 1
A94: 2010-09-10 | B94: 11 | C94: 2010-09-21 | D94: 13 | E94: 2010-10-04 | F94: 7
A95: 2010-09-01 | B95: 31 | C95: 2010-10-02 | D95: 31 | E95: 2010-11-02 | F95: 16
A97: 2010-06-22 | B97: 6 | C97: 2010-09-13 | D97: 5
A98: 2010-01-04 | B98: 7 | C98: 2010-06-05 | D98: 3
A99: 2010-08-19 | B99: 1
A105: 2010-03-05 | B105: 1
A107: 2010-03-04 | B107: 1 | C107: 2010-06-06 | D107: 1
A108: 2010-04-16 | B108: 9 | C108: 2010-10-25 | D108: 5
A110: 2010-05-12 | B110: 7 | C110: 2010-05-19 | D110: 8 | E110: 2010-05-27 | F110: 6 | G110: 2010-06-25 | H110: 31
A111: 2010-07-16 | B111: 30 | C111: 2010-12-10 | D111: 10
A113: 2010-09-06 | B113: 7 | C113: 2010-09-27 | D113: 21 | E113: 2010-10-18 | F113: 10
A117: 2010-10-12 | B117: 1
A119: 2010-06-04 | B119: 57
A121: 2010-07-16 | B121: 4
A123: 2010-01-17 | B123: 16 | C123: 2010-02-17 | D123: 31 | E123: 2010-08-16 | F123: 28 | G123: 2010-08-17 | H123: 1 | I123: 2010-08-30 | J123: 1 | K123: 2010-09-22 | L123: 7 | M123: 2010-10-20 | N123: 3 | O123: 2010-11-21 | P123: 32 | R123: 41
A125: 2010-05-11 | B125: 6
A129: 2010-05-18 | B129: 15 | C129: 2010-06-02 | D129: 5 | E129: 2010-06-28 | F129: 14 | G129: 2010-07-12 | H129: 7
A136: 2010-01-06 | B136: 5 | C136: 2010-01-19 | D136: 13 | E136: 2010-01-26 | F136: 7 | H136: 7
A139: 2010-01-07 | B139: 2 | C139: 2010-01-09 | D139: 3 | E139: 2010-03-16 | F139: 3 | G139: 2010-08-26 | H139: 2 | I139: 2010-10-08 | J139: 7 | K139: 2010-12-03 | L139: 3
A146: 2010-01-11 | B146: 2 | C146: 2010-05-27 | D146: 11 | E146: 21/7/6/10 | F146: 14 | G146: 2010-06-21 | H146: 11 | I146: 2010-07-02 | J146: 11 | K146: 2010-07-13 | L146: 19 | M146: 2010-08-01 | N146: 31 | O146: 2010-09-01 | P146: 30 | Q146: 2010-10-01 | R146: 33 | S146: 2010-11-01
A147: 2010-01-25 | B147: 8 | C147: 2010-02-02 | D147: 27 | E147: 2010-04-16 | F147: 8 | G147: 2010-04-24 | H147: 23 | I147: 2010-05-17 | J147: 2
A149: 2010-04-23 | B149: 11 | C149: 2010-05-04 | D149: 32 | E149: 2010-06-05 | F149: 30 | G149: 2010-07-05 | H149: 31 | I149: 2010-08-05 | J149: 16
A152: 2010-01-02 | B152: 2 | C152: 2010-01-03

Sheet Feuil2
B1: <7jrs | C1: <6jrs | D1: <5jrs | E1: <4jrs | F1: <3jrs | G1: <2jrs | H1: <1jrs | I1: TOTAL | J1: TOTAL_feuil3
A2: lundi | B2: =cumul_jrs("Feuil1",$A2,B$1) -> 12 | C2: =cumul_jrs("Feuil1",$A2,C$1) -> 12 | D2: 8 | E2: 8 | F2: 6 | G2: 3 | H2: 2 | I2: =SUM(B2:H2) -> 51 | J2: =Feuil3!J2 -> 38
A3: mardi | B3: =cumul_jrs("Feuil1",$A3,B$1) -> 11 | C3: 7 | D3: 6 | E3: 4 | F3: 3 | G3: 3 | H3: 0 | I3: =SUM(B3:H3) -> 34 | J3: =Feuil3!J3 -> 21
A4: mercredi | B4: 9 | C4: 8 | D4: 3 | E4: 3 | F4: 1 | G4: 0 | H4: 0 | I4: 24 | J4: =Feuil3!J4 -> 22
A5: jeudi | B5: 12 | C5: 11 | D5: 9 | E5: 9 | F5: 9 | G5: 6 | H5: 0 | I5: 56 | J5: =Feuil3!J5 -> 18
A6: vendredi | B6: 7 | C6: 7 | D6: 7 | E6: 6 | F6: 5 | G6: 4 | H6: 1 | I6: 37 | J6: =Feuil3!J6 -> 21
A7: samedi | B7: 4 | C7: 4 | D7: 4 | E7: 4 | F7: 0 | G7: 0 | H7: 0 | I7: 16 | J7: =Feuil3!J7 -> 11
A8: dimanche | B8: 5 | C8: 5 | D8: 5 | E8: 5 | F8: 3 | G8: 3 | H8: 0 | I8: 26 | J8: =Feuil3!J8 -> 10
B9: =SUM(B2:B8) -> 60 | C9: 54 | D9: 42 | E9: 39 | F9: 27 | G9: 19 | H9: 3 | I9: =SUM(I2:I8) -> 244 | J9: =SUM(J2:J8) -> 141
B10: Tableau a : Nombre d'arrets <7 jours par jour de début (anneé 2010)
B12: <7jrs
A13: lundi | B13: =B2/J2 -> 0.3157894737
A14: mardi | B14: =B3/J3 -> 0.5238095238
A15: mercredi | B15: 0.4090909091
A16: jeudi | B16: 0.6666666667
A17: vendredi | B17: 0.3333333333
A18: samedi | B18: 0.3636363636
A19: dimanche | B19: 0.5
B20: Tableau b : Répartition des arrets <7 jours classés selon le jour de début (anneé 2010)

Sheet Feuil3
B1: >7jrs | C1: 7jrs | D1: 6jrs | E1: 5jrs | F1: 4jrs | G1: 3jrs | H1: 2jrs | I1: 1jr | J1: TOTAL | L1: Vérif. | N1: Nb dates
A2: lundi | B2: =cumul_jrs("Feuil1",$A2,B$1) -> 18 | C2: =cumul_jrs("Feuil1",$A2,C$1) -> 10 | D2: 0 | E2: 4 | F2: 0 | G2: 2 | H2: 3 | I2: 1 | J2: =SUM(B2:I2) -> 38 | L2: =cpt_jrs("Feuil1",$A2) -> 38 | N2: =ROUNDDOWN(COUNTA(Feuil1!A2:AO1000)/2,0) -> 145
A3: mardi | B3: =cumul_jrs("Feuil1",$A3,B$1) -> 9 | C3: 1 | D3: 4 | E3: 1 | F3: 2 | G3: 1 | H3: 0 | I3: 3 | J3: =SUM(B3:I3) -> 21 | L3: =cpt_jrs("Feuil1",$A3) -> 21
A4: mercredi | B4: 11 | C4: 2 | D4: 1 | E4: 5 | F4: 0 | G4: 2 | H4: 1 | I4: 0 | J4: 22 | L4: 22
A5: jeudi | B5: 5 | C5: 1 | D5: 1 | E5: 2 | F5: 0 | G5: 0 | H5: 3 | I5: 6 | J5: 18 | L5: 18
A6: vendredi | B6: =cumul_jrs("Feuil1",$A6,B$1) -> 14 | C6: 1 | D6: 0 | E6: 0 | F6: 1 | G6: 1 | H6: 1 | I6: 3 | J6: 21 | L6: 21
A7: samedi | B7: =cumul_jrs("Feuil1",$A7,B$1) -> 5 | C7: 1 | D7: 0 | E7: 0 | F7: 0 | G7: 4 | H7: =cumul_jrs("Feuil1",$A7,H$1) -> 1 | I7: 0 | J7: 11 | L7: 11
A8: dimanche | B8: 5 | C8: 0 | D8: 0 | E8: 0 | F8: 0 | G8: 2 | H8: 0 | I8: =cumul_jrs("Feuil1",$A8,I$1) -> 3 | J8: 10 | L8: 10
B9: =SUM(B2:B8) -> 67 | C9: 16 | D9: 6 | E9: 12 | F9: 3 | G9: 12 | H9: 9 | I9: 16 | J9: =SUM(J2:J8) -> 141 | L9: =SUM(L2:L8) -> 141
C10: Tableau a : Nombre d'arrets regroupés par jour de début et durée en 2010
B12: >7jrs | C12: 7jrs | D12: 6jrs | E12: 5jrs | F12: 4jrs | G12: 3jrs | H12: 2jrs | I12: 1jr | J12: Total
A13: lundi | B13: =B2/J2 -> 0.4736842105 | C13: =C2/J2 -> 0.2631578947 | D13: =D2/J2 -> 0 | E13: =E2/J2 -> 0.1052631579 | F13: =F2/J2 -> 0 | G13: =G2/J2 -> 0.05263157895 | H13: =H2/J2 -> 0.07894736842 | I13: =I2/J2 -> 0.02631578947 | J13: =J2/J2 -> 1
A14: mardi | B14: =B3/J3 -> 0.4285714286 | C14: =C3/J3 -> 0.04761904762 | D14: =D3/J3 -> 0.1904761905 | E14: =E3/J3 -> 0.04761904762 | F14: =F3/J3 -> 0.09523809524 | G14: =G3/J3 -> 0.04761904762 | H14: =H3/J3 -> 0 | I14: =I3/J3 -> 0.1428571429 | J14: =J3/J3 -> 1
A15: mercredi | B15: 0.5 | C15: 0.09090909091 | D15: 0.04545454545 | E15: 0.2272727273 | F15: 0 | G15: 0.09090909091 | H15: 0.04545454545 | I15: 0 | J15: 1
A16: jeudi | B16: 0.2777777778 | C16: 0.05555555556 | D16: 0.05555555556 | E16: 0.1111111111 | F16: 0 | G16: 0 | H16: 0.1666666667 | I16: 0.3333333333 | J16: 1
A17: vendredi | B17: 0.6666666667 | C17: 0.04761904762 | D17: 0 | E17: 0 | F17: 0.04761904762 | G17: 0.04761904762 | H17: 0.04761904762 | I17: 0.1428571429 | J17: 1
A18: samedi | B18: 0.4545454545 | C18: 0.09090909091 | D18: 0 | E18: 0 | F18: 0 | G18: 0.3636363636 | H18: 0.09090909091 | I18: 0 | J18: 1
A19: dimanche | B19: 0.5 | C19: 0 | D19: 0 | E19: 0 | F19: 0 | G19: 0.2 | H19: 0 | I19: 0.3 | J19: 1
C20: Tableau b : Répartition des arrets classés selon le jour de début et la durée 2010
B23: >7jrs | C23: 7jrs | D23: 6jrs | E23: 5jrs | F23: 4jrs | G23: 3jrs | H23: 2jrs | I23: 1jr | J23: Total | L23: Vérif.
A24: JANVIER | B24: =cumul_mois("Feuil1",$A24,B$23) -> 4 | C24: =cumul_mois("Feuil1",$A24,C$23) -> 2 | D24: 1 | E24: 2 | F24: 0 | G24: 4 | H24: =cumul_mois("Feuil1",$A24,H$23) -> 3 | I24: =cumul_mois("Feuil1",$A24,I$23) -> 1 | J24: =SUM(B24:I24) -> 17 | L24: =cpt_mois("Feuil1",$A24) -> 17
A25: FÉVRIER | B25: =cumul_mois("Feuil1",$A25,B$23) -> 4 | C25: 0 | D25: 0 | E25: 0 | F25: 0 | G25: 1 | H25: 0 | I25: 0 | J25: =SUM(B25:I25) -> 5 | L25: =cpt_mois("Feuil1",$A25) -> 5
A26: MARS | B26: 1 | C26: 0 | D26: 0 | E26: 0 | F26: 0 | G26: 1 | H26: 1 | I26: 4 | J26: 7 | L26: 7
A27: AVRIL | B27: 6 | C27: 0 | D27: 0 | E27: 2 | F27: 1 | G27: 0 | H27: 0 | I27: 1 | J27: 10 | L27: 10
A28: MAI | B28: 9 | C28: 1 | D28: 4 | E28: 0 | F28: 0 | G28: 0 | H28: 2 | I28: 1 | J28: 17 | L28: 17
A29: JUIN | B29: 9 | C29: 2 | D29: 1 | E29: 1 | F29: 0 | G29: 2 | H29: 0 | I29: 2 | J29: 17 | L29: 17
A30: JUILLET | B30: 7 | C30: 2 | D30: 0 | E30: 0 | F30: 1 | G30: 0 | H30: 0 | I30: 0 | J30: 10 | L30: 10
A31: AOÛT | B31: 3 | C31: 0 | D31: 0 | E31: 1 | F31: 0 | G31: 0 | H31: 1 | I31: 3 | J31: 8 | L31: 8
A32: SEPTEMBRE | B32: 10 | C32: 3 | D32: 0 | E32: 1 | F32: 0 | G32: 1 | H32: 0 | I32: 2 | J32: 17 | L32: 17
A33: OCTOBRE | B33: 7 | C33: 6 | D33: 0 | E33: 2 | F33: 0 | G33: 1 | H33: 0 | I33: 1 | J33: 17 | L33: 17
A34: NOVEMBRE | B34: 3 | C34: 0 | D34: 0 | E34: 1 | F34: 0 | G34: 0 | H34: 2 | I34: 0 | J34: 6 | L34: 6
A35: DÉCEMBRE | B35: 4 | C35: 0 | D35: 0 | E35: 2 | F35: 1 | G35: 2 | H35: 0 | I35: 1 | J35: 10 | L35: 10
B36: =SUM(B24:B35) -> 67 | C36: 16 | D36: 6 | E36: 12 | F36: 3 | G36: 12 | H36: 9 | I36: 16 | J36: =SUM(J24:J35) -> 141 | L36: =SUM(L24:L35) -> 141
